[Event "2nd Sharjah Masters 2018"]
[Site "Sharjah"]
[Date "2018.04.17"]
[Round "7"]
[White "Dhulipalla Bala Chandra Prasa"]
[Black "Balasubramaniam H"]
[Result "1-0"]
[ECO "A20"]
[WhiteElo "2294"]
[BlackElo "2060"]
[Annotator "NA"]
[PlyCount "123"]
[EventDate "2018.??.??"]
[EventType "swiss"]
[EventCountry "UAE"]
[SourceTitle "playchess.com"]
[Source "ChessBase"]
[SourceQuality "1"]
[TimeControl "5400+30"]

1. c4 {[%emt 0:00:00]} e5 {[%emt 0:00:04]} 2. g3 {[%emt 0:00:16]} h5 {[%emt 0:00:19]} 3. d4 {[%emt 0:09:16]} Nc6 {[%emt 0:03:47]} 4. d5 {[%emt 0:03:58]} Nce7 {[%emt 0:03:52]} 5. Nf3 {[%emt 0:04:04]} Ng6 {[%emt 0:03:43]} 6. h4 {[%emt 0:11:12]} Nf6 {[%emt 0:04:34]} 7. Bg5 {[%emt 0:05:11]} Be7 {[%emt 0:01:21]} 8. Nc3 {[%emt 0:00:34]} d6 {[%emt 0:04:28]} 9. e4 {[%emt 0:03:24]} Ng4 {[%emt 0:04:32]} 10. Be2 {[%emt 0:04:27]} Nf8 {[%emt 0:08:54]} 11. Qd3 {[%emt 0:06:17]} Nh7 {[%emt 0:01:53]} 12. Bxe7 {[%emt 0:09:35]} Qxe7 {[%emt 0:00:03]} 13. Nd2 {[%emt 0:04:29]} Bd7 {[%emt 0:01:17]} 14. f3 {[%emt 0:02:27]} Nh6 {[%emt 0:02:46]} 15. O-O-O {[%emt 0:01:02]} O-O-O {[%emt 0:00:43]} 16. Qe3 {[%emt 0:02:38]} Kb8 {[%emt 0:00:13]} 17. Nb5 {[%emt 0:01:10]} Bxb5 {[%emt 0:03:37]} 18. cxb5 {[%emt 0:00:02]} f5 {[%emt 0:05:05]} 19. Nc4 {[%emt 0:04:28]} b6 {[%emt 0:06:45]} 20. Na3 {[%emt 0:02:10]} Kc8 {[%emt 0:05:47]} 21. Nc2 {[%emt 0:03:44]} Kd7 {[%emt 0:00:07]} 22. Nb4 {[%emt 0:01:11]} Ra8 {[%emt 0:00:07]} 23. Kb1 {[%emt 0:01:28]} Ke8 {[%emt 0:02:08]} 24. Nc6 {[%emt 0:03:06]} Qf7 {[%emt 0:04:38]} 25. f4 {[%emt 0:04:52]} exf4 {[%emt 0:02:00]} 26. Qxf4 {[%emt 0:02:36]} fxe4 {[%emt 0:01:18]} 27. Qxe4+ {[%emt 0:00:35]} Kf8 {[%emt 0:00:05]} 28. Nd4 Nf6 {[%emt 0:00:44]} 29. Ne6+ {[%emt 0:01:36]} Kg8 {[%emt 0:00:05]} 30. Qd3 {[%emt 0:01:48]} Nhg4 {[%emt 0:03:31]} 31. Rhf1 {[%emt 0:03:54]} Ne5 {[%emt 0:02:36]} 32. Qf5 {[%emt 0:00:13]} Re8 {[%emt 0:01:21]} 33. Ng5 {[%emt 0:01:00]} Qe7 {[%emt 0:03:02]} 34. Bf3 {[%emt 0:02:43]} Qd8 {[%emt 0:04:13]} 35. Rfe1 {[%emt 0:00:27]} Re7 {[%emt 0:01:22]} 36. Bg2 {[%emt 0:00:40]} Qe8 {[%emt 0:01:09]} 37. a4 {[%emt 0:00:38]} Nfd7 {[%emt 0:03:04]} 38. Bh3 {[%emt 0:01:03]} Nf6 {[%emt 0:03:06]} 39. Re2 {[%emt 0:00:33]} Rh6 {[%emt 0:03:31]} 40. Qc2 {[%emt 0:00:10]} Nfg4 {[%emt 0:01:33]} 41. Rf1 {[%emt 0:00:58]} Qa8 {[%emt 0:02:05]} 42. Bg2 {[%emt 0:00:32]} Nf6 {[%emt 0:00:39]} 43. Rf4 {[%emt 0:00:27]} Qe8 {[%emt 0:01:12]} 44. Rf1 {[%emt 0:00:32]} Qa8 {[%emt 0:00:51]} 45. Rf4 {[%emt 0:00:27]} Qe8 {[%emt 0:00:17]} 46. Bh3 {[%emt 0:00:17]} Nfg4 {[%emt 0:00:19]} 47. Ne6 {[%emt 0:00:41]} Ng6 {[%emt 0:01:42]} 48. Rc4 {[%emt 0:00:02]} Qf7 {[%emt 0:01:00]} 49. Bxg4 {[%emt 0:00:14]} hxg4 {[%emt 0:00:04]} 50. Rf2 {[%emt 0:00:16]} Qe8 {[%emt 0:00:27]} 51. Rxg4 {[%emt 0:00:02]} Ne5 {[%emt 0:00:13]} 52. Rgf4 {[%emt 0:00:17]} Nd7 {[%emt 0:01:11]} 53. Qxc7 {[%emt 0:01:05]} Qg6+ {[%emt 0:00:09]} 54. Qc2 {[%emt 0:00:04]} Qxc2+ {[%emt 0:00:16]} 55. Rxc2 {[%emt 0:00:08]} Nf6 {[%emt 0:00:05]} 56. Rc8+ {[%emt 0:00:20]} Kf7 {[%emt 0:00:01]} 57. Rf5 {[%emt 0:01:00]} Rh5 {[%emt 0:00:19]} 58. Rf8+ {[%emt 0:00:32]} Kg6 $18 {[%emt 0:00:01]} 59. Rxh5 {[%emt 0:00:52]} Nxh5 {[%emt 0:00:28]} 60. g4 {[%emt 0:00:21]} Nf6 {[%emt 0:00:06]} 61. h5+ {[%emt 0:00:20]} Kh7 {[%emt 0:00:04]} 62. Ng5+ {[%emt 0:00:10]} 1-0

[Event "2nd Sharjah Masters 2018"]
[Site "Sharjah"]
[Date "2018.04.17"]
[Round "7"]
[White "Pranav Vijay"]
[Black "Nikhil Magizhnan"]
[Result "1-0"]
[ECO "A45"]
[WhiteElo "2265"]
[BlackElo "2105"]
[Annotator "NA"]
[PlyCount "113"]
[EventDate "2018.??.??"]
[EventType "swiss"]
[EventCountry "UAE"]
[SourceTitle "playchess.com"]
[Source "ChessBase"]
[SourceQuality "1"]
[TimeControl "5400+30"]

1. d4 Nf6 2. Bf4 d5 3. Nc3 c6 4. e3 g6 5. h4 Bg7 6. h5 Nxh5 7. Rxh5 gxh5 8. Qxh5 Nd7 9. Qh2 Nf8 10. Bc7 Qd7 11. Nf3 Qe6 12. Bb8 Bd7 $15 13. Be5 f6 14. Bg3 Qf7 15. Be2 Ng6 16. O-O-O Bf5 17. Bb8 Qe6 18. Nd2 Qd7 19. Bg3 h5 20. Qg1 h4 21. Bh2 Bh6 22. Kb1 Be6 23. f3 Bf7 24. Nb3 e6 25. Nc5 Qc8 26. Qf2 Bf8 27. e4 Bxc5 28. dxc5 d4 29. Qxd4 e5 30. Qe3 Qc7 31. Rd6 Qe7 32. Bf1 Rd8 33. Qd2 Rxd6 34. cxd6 Qd7 35. Nd1 Ne7 36. f4 Nc8 37. fxe5 Qe6 38. Qd4 fxe5 39. d7+ Kd8 40. Bxe5 Qxa2+ 41. Kc1 Bh5 42. Ne3 Rf8 43. Bf6+ Ne7 44. Bxe7+ Kxe7 45. Qc5+ Kxd7 46. Qxf8 Bf7 47. Be2 Be6 48. Nf5 Qa1+ 49. Kd2 Bxf5 50. Qxf5+ Kc7 51. Qe5+ Kb6 52. Qd4+ Kc7 53. e5 Qh1 54. Qd6+ Kb6 55. Qd8+ Kc5 56. c3 Qg1 57. b4# {Kd5} 1-0

[Event "2nd Sharjah Masters 2018"]
[Site "Sharjah"]
[Date "2018.04.17"]
[Round "7"]
[White "Aditya Mittal"]
[Black "Polakhare Aryan"]
[Result "1-0"]
[ECO "E25"]
[WhiteElo "2212"]
[BlackElo "1966"]
[Annotator "NA"]
[PlyCount "141"]
[EventDate "2018.??.??"]
[EventType "swiss"]
[EventCountry "UAE"]
[SourceTitle "playchess.com"]
[Source "ChessBase"]
[SourceQuality "1"]
[TimeControl "5400+30"]

1. d4 {[%emt 0:00:00]} Nf6 {[%emt 0:00:02]} 2. c4 {[%emt 0:00:00]} e6 {[%emt 0:00:01]} 3. Nc3 {[%emt 0:00:00]} Bb4 {[%emt 0:00:08]} 4. f3 {[%emt 0:00:00]} d5 {[%emt 0:00:11]} 5. a3 {[%emt 0:00:00]} Bxc3+ {[%emt 0:00:06]} 6. bxc3 {[%emt 0:00:00]} c5 {[%emt 0:00:18]} 7. cxd5 {[%emt 0:00:04]} Nxd5 {[%emt 0:00:08]} 8. dxc5 {[%emt 0:00:05]} Qa5 {[%emt 0:01:09]} 9. e4 {[%emt 0:00:24]} Nf6 {[%emt 0:01:43]} 10. Be3 {[%emt 0:00:33]} O-O {[%emt 0:00:40]} 11. Qb3 {[%emt 0:00:19]} Nfd7 {[%emt 0:01:49]} 12. a4 {[%emt 0:00:13]} Qc7 {[%emt 0:01:41]} 13. Qa3 {[%emt 0:00:01]} b6 {[%emt 0:00:15]} 14. a5 {[%emt 0:00:47]} bxc5 {[%emt 0:00:07]} 15. a6 {[%emt 0:00:28]} c4 {[%emt 0:00:35]} 16. Qa5 {[%emt 0:01:20]} Qc6 {[%emt 0:06:50]} 17. Ne2 {[%emt 0:13:45]} Qxa6 {[%emt 0:03:22]} 18. Nd4 {[%emt 0:07:50]} Ne5 {[%emt 0:17:42]} 19. Kf2 {[%emt 0:31:38]} Qxa5 {[%emt 0:14:14]} 20. Rxa5 {[%emt 0:00:02]} Nbd7 {[%emt 0:05:07]} 21. Bf4 {[%emt 0:09:09]} Nd3+ {[%emt 0:01:24]} 22. Bxd3 {[%emt 0:00:02]} cxd3 {[%emt 0:00:02]} 23. Bd6 {[%emt 0:01:25]} Re8 {[%emt 0:00:34]} 24. Rb1 {[%emt 0:10:56]} Rd8 {[%emt 0:13:16]} 25. Nc6 {[%emt 0:02:28]} Re8 {[%emt 0:00:25]} 26. c4 {[%emt 0:03:34]} f6 {[%emt 0:05:50]} 27. c5 {[%emt 0:06:12]} e5 {[%emt 0:02:39]} 28. Ne7+ {[%emt 0:01:06]} Kf7 {[%emt 0:01:12]} 29. Nd5 {[%emt 0:00:10]} Rd8 {[%emt 0:01:01]} 30. c6 {[%emt 0:05:21]} Nf8 {[%emt 0:00:01]} 31. Bxf8 {[%emt 0:01:22]} Kxf8 {[%emt 0:00:12]} 32. c7 {[%emt 0:00:16]} Re8 {[%emt 0:01:56]} 33. Nb6 {[%emt 0:00:36]} axb6 {[%emt 0:00:25]} 34. Rxa8 {[%emt 0:00:02]} Ke7 {[%emt 0:04:07]} 35. Rxb6 {[%emt 0:00:25]} Kd7 {[%emt 0:00:30]} 36. Ra7 {[%emt 0:00:18]} Re6 {[%emt 0:02:06]} 37. Rxe6 {[%emt 0:00:47]} Kxe6 {[%emt 0:00:02]} 38. Ke3 {[%emt 0:01:46]} Kd6 {[%emt 0:00:31]} 39. Kxd3 {[%emt 0:00:30]} Kc6 {[%emt 0:00:04]} 40. Kc4 {[%emt 0:00:42]} h6 {[%emt 0:04:43]} 41. Ra8 {[%emt 0:01:26]} Be6+ {[%emt 0:00:30]} 42. Kb4 {[%emt 0:00:10]} Kb7 {[%emt 0:01:29]} 43. Re8 {[%emt 0:00:09]} Bd7 {[%emt 0:00:26]} 44. Re7 {[%emt 0:00:02]} Kxc7 {[%emt 0:00:06]} 45. Rxg7 {[%emt 0:00:03]} Kd6 {[%emt 0:00:12]} 46. Rh7 {[%emt 0:00:14]} Ke6 {[%emt 0:00:19]} 47. Rxh6 {[%emt 0:00:07]} Be8 {[%emt 0:00:07]} 48. Kc5 {[%emt 0:00:12]} Kf7 {[%emt 0:00:04]} 49. Rh7+ {[%emt 0:00:15]} Kg6 {[%emt 0:00:06]} 50. Re7 {[%emt 0:00:05]} Ba4 {[%emt 0:00:05]} 51. Ra7 {[%emt 0:00:41]} Bd1 {[%emt 0:00:15]} 52. Kd6 {[%emt 0:00:24]} Be2 {[%emt 0:00:17]} 53. Ke7 {[%emt 0:00:19]} Bf1 {[%emt 0:00:08]} 54. g3 {[%emt 0:00:24]} Be2 {[%emt 0:00:09]} 55. f4 {[%emt 0:00:15]} Bd3 {[%emt 0:00:17]} 56. fxe5 {[%emt 0:00:06]} fxe5 {[%emt 0:00:03]} 57. Ra4 {[%emt 0:00:22]} Bc2 {[%emt 0:00:49]} 58. Rb4 {[%emt 0:00:17]} Kg5 {[%emt 0:00:20]} 59. Ke6 {[%emt 0:00:06]} Kg4 {[%emt 0:00:05]} 60. Kxe5 {[%emt 0:00:05]} Kh3 {[%emt 0:00:05]} 61. Kf4 {[%emt 0:00:12]} Bd1 {[%emt 0:00:10]} 62. e5 {[%emt 0:00:06]} Bg4 {[%emt 0:00:13]} 63. Kg5 {[%emt 0:00:17]} Bc8 {[%emt 0:00:06]} 64. Rh4+ {[%emt 0:00:09]} Kg2 {[%emt 0:00:03]} 65. Kf6 {[%emt 0:00:08]} Kf3 {[%emt 0:00:11]} 66. e6 {[%emt 0:00:08]} Bxe6 {[%emt 0:00:03]} 67. Kxe6 {[%emt 0:00:01]} Kg2 {[%emt 0:00:12]} 68. g4 {[%emt 0:00:14]} Kg1 {[%emt 0:00:05]} 69. g5 {[%emt 0:00:04]} Kg2 {[%emt 0:00:04]} 70. g6 {[%emt 0:00:04]} Kg1 {[%emt 0:00:04]} 71. Rg4+ {[%emt 0:00:06]} 1-0

[Event "2nd Sharjah Masters 2018"]
[Site "Sharjah"]
[Date "2018.04.17"]
[Round "7"]
[White "Bhambure, Shantanu"]
[Black "Rajdeep Sarkar"]
[Result "1-0"]
[ECO "A40"]
[WhiteElo "2155"]
[BlackElo "2393"]
[Annotator "NA"]
[PlyCount "139"]
[EventDate "2018.??.??"]
[EventType "swiss"]
[EventCountry "UAE"]
[SourceTitle "playchess.com"]
[Source "ChessBase"]
[SourceQuality "1"]
[TimeControl "5400+30"]

1. d4 {[%emt 0:00:00]} e6 {[%emt 0:00:06]} 2. c4 {[%emt 0:00:00]} b6 {[%emt 0:00:04]} 3. a3 {[%emt 0:00:24]} Bb7 {[%emt 0:00:18]} 4. Nc3 {[%emt 0:00:15]} f5 {[%emt 0:01:09]} 5. d5 {[%emt 0:00:35]} Nf6 {[%emt 0:00:23]} 6. g3 {[%emt 0:01:00]} Na6 {[%emt 0:03:04] A40: Unusual replies to 1 d4} (6... Bd6 7. Bg2 a5 8. Nh3 O-O 9. O-O Na6 10. e4 Be5 11. exf5 Bxc3 12. bxc3 exf5 13. Be3 Ne4 14. Bxe4 fxe4 {1-0 (36) Navara,D (2737)-Hou,Y (2666) Biel 2017}) 7. Nh3 {[%emt 0:03:37]} Bd6 {[%emt 0:04:42]} 8. Bf4 $146 {[%emt 0:03:48]} ({Predecessor:} 8. Bg2 O-O 9. O-O Nc5 10. Qc2 Qe7 11. Be3 Nce4 12. Rad1 Nxc3 13. Qxc3 {½-½ (52) Laznicka,V (2601)-Langrock,H (2398) Liverpool 2008}) 8... e5 {[%emt 0:09:39]} 9. Bc1 {[%emt 0:11:56]} c6 {[%emt 0:07:45]} 10. Bg2 {[%emt 0:02:43]} Qe7 {[%emt 0:04:23]} 11. e4 {[%emt 0:13:23]} f4 {[%emt 0:20:19]} 12. gxf4 {[%emt 0:08:00]} exf4 {[%emt 0:00:17]} 13. Bxf4 {[%emt 0:03:01]} Bxf4 {[%emt 0:03:57]} 14. Nxf4 {[%emt 0:00:06]} O-O {[%emt 0:01:33]} 15. O-O {[%emt 0:16:01]} Nxe4 {[%emt 0:04:06]} 16. Nxe4 {[%emt 0:00:48]} Rxf4 {[%emt 0:00:35]} 17. d6 {[%emt 0:00:42]} Qh4 {[%emt 0:01:47]} 18. Qd3 {[%emt 0:04:09]} Raf8 {[%emt 0:07:12]} 19. Rae1 {[%emt 0:09:15]} Nc5 {[%emt 0:08:24]} 20. Nxc5 {[%emt 0:01:02]} bxc5 {[%emt 0:00:01]} 21. Re4 {[%emt 0:01:50]} a5 {[%emt 0:04:41]} 22. a4 {[%emt 0:01:13]} Rxe4 {[%emt 0:03:13]} 23. Bxe4 {[%emt 0:03:44]} Rf6 {[%emt 0:01:56]} 24. f3 {[%emt 0:01:11]} Rh6 {[%emt 0:00:55]} 25. Qd2 {[%emt 0:02:54]} Qf6 {[%emt 0:03:35]} 26. Rd1 {[%emt 0:00:38]} Qe5 {[%emt 0:00:47]} 27. b3 {[%emt 0:01:17]} Kf7 {[%emt 0:00:26]} 28. Kh1 {[%emt 0:04:23]} Kf8 {[%emt 0:02:04]} 29. Kg1 {[%emt 0:01:07]} Rh4 {[%emt 0:01:32]} 30. Qf2 {[%emt 0:01:11]} Qf4 {[%emt 0:01:02]} 31. Qg3 {[%emt 0:01:45]} g5 {[%emt 0:00:39]} 32. Kg2 {[%emt 0:01:26]} Kf7 {[%emt 0:01:29]} 33. Qxf4+ {[%emt 0:00:35]} gxf4 {[%emt 0:01:53]} 34. Bf5 {[%emt 0:00:28]} Bc8 {[%emt 0:01:35]} 35. Re1 {[%emt 0:00:51]} Rh6 {[%emt 0:00:08]} 36. Re7+ {[%emt 0:01:46]} Kf8 {[%emt 0:00:00]} 37. Rxh7 {[%emt 0:00:11]} Rxh7 {[%emt 0:01:16]} 38. Bxh7 {[%emt 0:00:02]} Kf7 {[%emt 0:00:38]} 39. h4 {[%emt 0:01:11]} Ke6 {[%emt 0:00:00]} 40. h5 {[%emt 0:00:26]} Kxd6 {[%emt 0:00:14]} 41. h6 {[%emt 0:00:14]} Ke7 {[%emt 0:00:07]} 42. Bf5 {[%emt 0:00:17]} Kf7 {[%emt 0:00:02]} 43. Kh3 {[%emt 0:01:00]} Ba6 {[%emt 0:00:32]} 44. h7 {[%emt 0:00:38]} Kg7 {[%emt 0:00:01]} 45. Bxd7 {[%emt 0:00:07]} Kxh7 {[%emt 0:00:02]} 46. Kg4 {[%emt 0:00:26]} Kg6 {[%emt 0:00:03]} 47. Kxf4 {[%emt 0:00:13]} Kf6 {[%emt 0:00:01]} 48. Bxc6 {[%emt 0:01:13]} Bc8 {[%emt 0:00:01]} 49. Ke4 {[%emt 0:00:22]} Be6 {[%emt 0:00:33]} 50. Bb7 {[%emt 0:00:58]} Bf7 {[%emt 0:00:27]} 51. Bc8 {[%emt 0:00:12]} Bg8 {[%emt 0:00:08]} 52. Bh3 {[%emt 0:00:39]} Bf7 {[%emt 0:00:15]} 53. f4 {[%emt 0:00:24]} Bg8 {[%emt 0:00:05]} 54. Bg4 {[%emt 0:00:29]} Bf7 {[%emt 0:00:43]} 55. Bc8 {[%emt 0:00:10]} Bg8 {[%emt 0:00:07]} 56. Bb7 {[%emt 0:00:51]} Be6 {[%emt 0:00:05]} 57. Bc6 {[%emt 0:00:22]} Bg8 {[%emt 0:00:38]} 58. f5 {[%emt 0:00:39]} Bf7 {[%emt 0:00:29]} 59. Bd5 {[%emt 0:00:36]} Bh5 {[%emt 0:00:14]} 60. Be6 {[%emt 0:00:17]} Bd1 {[%emt 0:00:41]} 61. Kd5 {[%emt 0:00:11]} Bxb3 {[%emt 0:00:03]} 62. Bd7 {[%emt 0:00:29]} Bc2 {[%emt 0:00:43]} 63. Kxc5 {[%emt 0:00:15]} Ke7 {[%emt 0:00:01]} 64. Bb5 {[%emt 0:00:29]} Bxf5 {[%emt 0:00:05]} 65. Kb6 {[%emt 0:00:02]} Kd8 {[%emt 0:02:00]} 66. Kb7 {[%emt 0:00:15]} Be4+ {[%emt 0:01:18]} 67. Kb8 {[%emt 0:00:36]} Ke7 {[%emt 0:02:00]} 68. c5 {[%emt 0:00:14]} Bf5 {[%emt 0:01:25]} 69. c6 {[%emt 0:00:14]} Kd6 {[%emt 0:00:04]} 70. c7 {[%emt 0:00:04]} 1-0

[Event "2nd Sharjah Masters 2018"]
[Site "Sharjah"]
[Date "2018.04.17"]
[Round "7"]
[White "Ajay Karthikeyan"]
[Black "Arjun Kalyan"]
[Result "0-1"]
[ECO "A45"]
[WhiteElo "2127"]
[BlackElo "2397"]
[Annotator "NA"]
[PlyCount "74"]
[EventDate "2018.??.??"]
[EventType "swiss"]
[EventCountry "UAE"]
[SourceTitle "playchess.com"]
[Source "ChessBase"]
[SourceQuality "1"]
[TimeControl "5400+30"]

1. d4 {[%emt 0:00:00]} Nf6 {[%emt 0:00:09]} 2. Bf4 {[%emt 0:00:01]} d5 {[%emt 0:00:20]} 3. e3 {[%emt 0:00:10]} c5 {[%emt 0:00:25]} 4. c3 {[%emt 0:00:06]} Nc6 {[%emt 0:00:13]} 5. Nd2 {[%emt 0:00:04]} Bf5 {[%emt 0:00:40]} 6. Qb3 {[%emt 0:00:33]} Qd7 {[%emt 0:00:24]} 7. Ngf3 {[%emt 0:00:25]} c4 {[%emt 0:00:29]} 8. Qd1 {[%emt 0:00:12]} e6 {[%emt 0:00:07]} 9. Be2 {[%emt 0:00:16]} b5 {[%emt 0:00:59]} 10. O-O {[%emt 0:05:15]} Bd6 {[%emt 0:02:12]} 11. Ne5 {[%emt 0:15:01]} Bxe5 {[%emt 0:04:12]} 12. Bxe5 {[%emt 0:07:40]} Nxe5 {[%emt 0:01:49]} 13. dxe5 {[%emt 0:00:47]} Ne4 {[%emt 0:00:12]} 14. Nf3 {[%emt 0:01:08]} Nc5 {[%emt 0:03:54]} 15. Nd4 {[%emt 0:00:38]} Bg6 {[%emt 0:02:45]} 16. f4 {[%emt 0:06:15]} a5 {[%emt 0:06:04]} 17. g4 {[%emt 0:07:26]} Be4 {[%emt 0:03:49]} 18. Qe1 {[%emt 0:02:48]} Rb8 {[%emt 0:02:11]} 19. f5 {[%emt 0:11:57]} Rb6 {[%emt 0:13:34]} 20. Qh4 {[%emt 0:05:59]} Qc7 {[%emt 0:03:21]} 21. Qg3 {[%emt 0:04:53]} Nd7 {[%emt 0:01:17]} 22. fxe6 {[%emt 0:00:04]} fxe6 {[%emt 0:00:06]} 23. Rf4 {[%emt 0:04:36]} Qxe5 {[%emt 0:01:33]} 24. g5 {[%emt 0:07:12]} h6 {[%emt 0:07:24]} 25. Raf1 {[%emt 0:14:52]} hxg5 {[%emt 0:01:20]} 26. Rg4 {[%emt 0:01:18]} Qxg3+ {[%emt 0:00:12]} 27. Rxg3 {[%emt 0:00:01]} Rf8 {[%emt 0:00:31]} 28. Rxg5 {[%emt 0:01:08]} Rxf1+ {[%emt 0:00:05]} 29. Bxf1 Kf7 {[%emt 0:00:07]} 30. Bh3 {[%emt 0:01:16]} Nc5 {[%emt 0:00:45]} 31. Kf1 {[%emt 0:01:52]} b4 {[%emt 0:00:30]} 32. cxb4 {[%emt 0:00:58]} axb4 {[%emt 0:00:06]} 33. Bg2 {[%emt 0:00:13]} Ra6 {[%emt 0:00:23]} 34. Bxe4 {[%emt 0:01:15]} Nxe4 {[%emt 0:00:02]} 35. Rg2 {[%emt 0:00:33]} Rxa2 {[%emt 0:00:05]} 36. Re2 {[%emt 0:00:21]} b3 {[%emt 0:00:14]} 37. Ke1 {[%emt 0:00:22]} Ra1# {[%emt 0:00:05]} 0-1

[Event "2nd Sharjah Masters 2018"]
[Site "Sharjah"]
[Date "2018.04.17"]
[Round "7"]
[White "Sun, Chao"]
[Black "El Jawich, Amro"]
[Result "1/2-1/2"]
[ECO "A04"]
[WhiteElo "2041"]
[BlackElo "2254"]
[Annotator "NA"]
[PlyCount "101"]
[EventDate "2018.??.??"]
[EventType "swiss"]
[EventCountry "UAE"]
[SourceTitle "playchess.com"]
[Source "ChessBase"]
[SourceQuality "1"]
[TimeControl "5400+30"]

1. Nf3 d6 2. d4 g6 3. g3 Bg7 4. Bg2 Nf6 5. b3 c5 6. Bb2 cxd4 7. Nxd4 d5 8. O-O O-O 9. Nf3 Nc6 {A49: 1 d4 Nf6 2 Nf3 g6 3 g3: Anti-King's Indian systems} 10. Nbd2 (10. Ne5 Qd6 11. Nxc6 bxc6 12. c4 Rd8 13. cxd5 cxd5 14. Nc3 Ba6 15. Qd2 Rac8 16. Rfd1 d4 17. Ne4 {0-1 (36) Saraci,N (2393)-Ziska,H (2545) Heraklio 2017}) 10... Re8 11. Ne5 Qc7 12. Nxc6 bxc6 13. c4 e5 14. cxd5 cxd5 15. Rc1 Qb8 $146 ({Predecessor:} 15... Qd7 16. Nc4 e4 17. Ne5 {0-1 (55) Kosin,J (2058)-Visser,D (2115) Niederrhein 2005}) 16. Re1 a5 17. Nb1 a4 18. Nc3 axb3 19. axb3 $17 d4 20. Nd5 Ra2 21. Ba1 Be6 22. e4 Rd8 23. b4 Nxd5 24. exd5 Bxd5 25. Bxd5 Rxd5 26. Qb3 Qa8 27. b5 Ra5 28. Rc8+ Qxc8 29. Qxd5 Qa8 30. Qxa8+ Rxa8 31. f4 e4 32. b6 f5 33. b7 Rb8 34. Rb1 d3 35. Bxg7 Kxg7 36. Kf2 Kf7 37. Ke3 Ke6 38. g4 Kd6 39. gxf5 gxf5 40. Rb5 Kc6 41. Rxf5 Rxb7 42. Re5 Rd7 43. Kd2 Rd4 44. f5 Kd6 45. Re8 Kd7 46. Re5 Rc4 47. f6 Rc2+ 48. Kd1 Rf2 49. Rxe4 Rxf6 50. Rd4+ Rd6 51. Rxd6+ 1/2-1/2

[Event "2nd Sharjah Masters 2018"]
[Site "Sharjah"]
[Date "2018.04.17"]
[Round "7"]
[White "Gagare, Shalmali"]
[Black "Mohannad, Farhan"]
[Result "0-1"]
[ECO "A20"]
[WhiteElo "2039"]
[BlackElo "2219"]
[Annotator "NA"]
[PlyCount "78"]
[EventDate "2018.??.??"]
[EventType "swiss"]
[EventCountry "UAE"]
[SourceTitle "playchess.com"]
[Source "ChessBase"]
[SourceQuality "1"]
[TimeControl "5400+30"]

1. c4 {[%emt 0:00:00]} e5 {[%emt 0:00:29]} 2. g3 {[%emt 0:00:20]} d6 {[%emt 0:00:05]} 3. Bg2 {[%emt 0:00:12]} g6 {[%emt 0:00:07]} 4. Nc3 {[%emt 0:00:47]} Bg7 {[%emt 0:00:04]} 5. Nf3 {[%emt 0:00:37]} Ne7 {[%emt 0:00:54]} 6. d3 {[%emt 0:03:16]} O-O {[%emt 0:00:08]} 7. O-O {[%emt 0:01:03]} f5 {[%emt 0:00:24]} 8. Rb1 {[%emt 0:02:55]} h6 {[%emt 0:01:49]} 9. Qc2 {[%emt 0:04:29]} g5 {[%emt 0:01:26]} 10. b4 {[%emt 0:02:53]} Ng6 {[%emt 0:01:16]} 11. b5 {[%emt 0:04:44]} Nd7 {[%emt 0:01:05]} 12. Nd5 {[%emt 0:05:59]} Nc5 {[%emt 0:00:33]} 13. Bb2 {[%emt 0:08:05]} g4 {[%emt 0:01:51]} 14. Nd2 {[%emt 0:01:26]} h5 {[%emt 0:02:57]} 15. Rbd1 {[%emt 0:19:00]} a6 {[%emt 0:10:27]} 16. d4 {[%emt 0:21:06]} exd4 {[%emt 0:00:31]} 17. Nb3 {[%emt 0:00:38]} axb5 {[%emt 0:19:15]} 18. cxb5 {[%emt 0:05:08]} d3 {[%emt 0:11:36]} 19. exd3 {[%emt 0:02:07]} Rxa2 {[%emt 0:01:16]} 20. Nc3 {[%emt 0:07:17]} Rxb2 {[%emt 0:01:54]} 21. Qxb2 {[%emt 0:00:09]} Na4 {[%emt 0:00:05]} 22. Qc2 {[%emt 0:02:36]} Nxc3 {[%emt 0:00:13]} 23. Rc1 {[%emt 0:02:53]} Re8 {[%emt 0:00:22]} 24. Rfe1 {[%emt 0:00:20]} Kh7 {[%emt 0:01:06]} 25. Qd2 {[%emt 0:02:19]} Rxe1+ {[%emt 0:00:28]} 26. Rxe1 {[%emt 0:00:07]} Nxb5 {[%emt 0:00:30]} 27. d4 {[%emt 0:00:35]} c6 {[%emt 0:01:23]} 28. h3 {[%emt 0:01:17]} Qf6 {[%emt 0:01:38]} 29. d5 {[%emt 0:01:02]} c5 {[%emt 0:00:22]} 30. Re8 {[%emt 0:00:35]} c4 {[%emt 0:02:05]} 31. Na5 {[%emt 0:00:53]} c3 {[%emt 0:00:38]} 32. Qc2 {[%emt 0:00:25]} Nd4 {[%emt 0:00:21]} 33. Qd3 {[%emt 0:00:39]} Bd7 {[%emt 0:00:23]} 34. Re1 {[%emt 0:00:22]} Bb5 {[%emt 0:00:41]} 35. Nc4 {[%emt 0:00:38]} Ne5 {[%emt 0:01:01]} 36. Qxc3 {[%emt 0:00:32]} Bxc4 {[%emt 0:00:33]} 37. Kh1 {[%emt 0:00:20]} gxh3 {[%emt 0:01:27]} 38. Qxd4 {[%emt 0:00:16]} hxg2+ {[%emt 0:00:04]} 39. Kxg2 {[%emt 0:00:04]} Nf3 {[%emt 0:00:42]} 0-1

[Event "2nd Sharjah Masters 2018"]
[Site "Sharjah"]
[Date "2018.04.17"]
[Round "7"]
[White "Ahmed, Fareed"]
[Black "Zhu, Yilun"]
[Result "0-1"]
[ECO "B43"]
[WhiteElo "1989"]
[BlackElo "2195"]
[Annotator "NA"]
[PlyCount "35"]
[EventDate "2018.??.??"]
[EventType "swiss"]
[EventCountry "UAE"]
[SourceTitle "playchess.com"]
[Source "ChessBase"]
[SourceQuality "1"]
[TimeControl "5400+30"]

1. e4 {[%emt 0:16:13]} c5 {[%emt 0:00:09]} 2. Nf3 {[%emt 0:00:30]} e6 {[%emt 0:00:06]} 3. Nc3 {[%emt 0:00:12]} a6 {[%emt 0:00:11]} 4. d4 {[%emt 0:00:08]} cxd4 {[%emt 0:00:04]} 5. Nxd4 {[%emt 0:00:04]} Qc7 {[%emt 0:00:14]} 6. Bd3 {[%emt 0:01:02]} Bc5 {[%emt 0:00:33]} 7. Nde2 {[%emt 0:01:10]} b5 {[%emt 0:02:36]} 8. Bf4 {[%emt 0:02:21]} d6 {[%emt 0:03:48]} 9. Ng3 {[%emt 0:01:39]} Ne7 {[%emt 0:01:16]} 10. Qf3 {[%emt 0:07:16]} Ng6 {[%emt 0:04:33]} 11. O-O-O {[%emt 0:07:18]} Nc6 {[%emt 0:02:59]} 12. Nh5 {[%emt 0:17:11]} O-O {[%emt 0:06:59]} 13. Bh6 {[%emt 0:17:53]} gxh6 {[%emt 0:04:11]} 14. e5 {[%emt 0:10:57]} d5 {[%emt 0:00:26]} 15. Nxd5 {[%emt 0:02:39]} exd5 {[%emt 0:01:03]} 16. Qf6 {[%emt 0:00:04]} Qxe5 {[%emt 0:00:05]} 17. Qxc6 {[%emt 0:00:05]} Be6 {[%emt 0:00:32]} 18. Bf1 0-1

[Event "2nd Sharjah Masters 2018"]
[Site "Sharjah"]
[Date "2018.04.18"]
[Round "8"]
[White "Rajdeep Sarkar"]
[Black "Shanya Mishra"]
[Result "1-0"]
[ECO "A05"]
[WhiteElo "2393"]
[BlackElo "1922"]
[Annotator "NA"]
[PlyCount "97"]
[EventDate "2018.??.??"]
[EventType "swiss"]
[EventCountry "UAE"]
[SourceTitle "playchess.com"]
[Source "ChessBase"]
[SourceQuality "1"]
[TimeControl "5400+30"]

1. Nf3 Nf6 2. g3 d5 3. Bg2 e6 4. O-O Be7 5. b3 O-O 6. c4 c5 7. Bb2 Nc6 8. e3 b6 9. Qe2 Bb7 10. Rd1 Qc7 11. Nc3 Rad8 12. Rac1 dxc4 13. bxc4 Qb8 14. Ne1 Qa8 15. f4 Ne8 $11 16. g4 Nd6 17. d3 Rd7 18. Nf3 f6 19. Nd2 Rfd8 20. a3 f5 21. gxf5 Nxf5 22. Nf3 Bf6 23. Na4 Kh8 24. Bxf6 gxf6 25. Kf2 Rg7 26. Bh3 Rdg8 27. Rg1 Rxg1 28. Rxg1 Rxg1 29. Nxg1 Nce7 30. Qb2 Kg7 31. Ne2 Kf7 32. Ng3 Bc6 33. Nc3 Nxg3 34. hxg3 f5 35. Nb5 Qb8 36. a4 a6 37. Nc3 Qd6 38. Qe2 Ng6 39. Bf1 Qf8 40. Qb2 Qd8 41. Be2 e5 42. fxe5 Nxe5 43. Nd5 Nd7 44. Bf3 Bxd5 45. Bxd5+ Kg6 46. a5 b5 47. cxb5 Qxa5 48. Bc6 Nb6 49. Be8+ 1-0